bitfinex-derivatives/quotes_BTCF0:USTF0_20240829
["timestamp","ask_amount","ask_price","bid_price","bid_amount"]
[1724940396168,0.3608,60714.0,60706.0,0.082342]
[1724940396469,0.3608,60714.0,60704.0,0.00024703]
[1724940396770,0.3608,60714.0,60709.0,0.082338]
[1724940396974,0.3618,60714.0,60712.0,0.021]
[1724940397361,0.49412,60713.0,60704.0,0.00024703]
[1724940397668,0.3608,60708.0,60706.0,0.006]
[1724940399171,0.3618,60714.0,60706.0,0.006]
[1724940399371,0.3618,60714.0,60704.0,0.01424703]
[1724940399571,0.001,60714.0,60713.0,0.082334]
[1724940400075,0.00024703,60716.0,60715.0,0.082331]
[1724940401263,0.01124703,60716.0,60715.0,0.082331]
[1724940401669,0.02324703,60716.0,60711.0,0.082336]
[1724940401872,0.02324703,60716.0,60712.0,0.082334]
[1724940402469,0.02324703,60716.0,60710.0,0.39056984]
[1724940402684,0.11443776,60731.0,60710.0,0.39056984]
[1724940402685,0.3608,60736.0,60735.0,0.082304]
[1724940402975,0.3608,60740.0,60729.0,0.3608]
[1724940403177,0.3608,60740.0,60730.0,0.16684]
[1724940404082,0.3608,60740.0,60738.0,0.0823]
[1724940404376,0.3748,60740.0,60738.0,0.0823]
[1724940404674,0.3748,60740.0,60739.0,0.082298]
[1724940404879,0.014,60740.0,60739.0,0.082298]
[1724940405473,0.028,60740.0,60739.0,0.576218]
[1724940405777,0.028,60740.0,60739.0,0.249138]
[1724940405982,0.028,60740.0,60739.0,0.743058]
[1724940406277,1.09751261,60749.0,60740.0,0.49392]
[1724940406465,1.09751261,60749.0,60748.0,0.443086]
[1724940406671,1.09751261,60749.0,60748.0,1.043086]
[1724940406871,1.09751261,60749.0,60748.0,1.536926]
[1724940407470,1.10251261,60749.0,60748.0,0.443086]
[1724940408073,1.10751261,60749.0,60748.0,0.443086]
[1724940408668,1.10751261,60749.0,60748.0,0.444086]
[1724940409178,1.10751261,60749.0,60748.0,0.001]
[1724940409379,1.10751261,60749.0,60748.0,0.083286]
[1724940409592,1.10751261,60749.0,60748.0,1.177126]
[1724940409773,1.10751261,60749.0,60748.0,0.577126]
[1724940409975,1.10751261,60749.0,60748.0,0.60691364]
[1724940410281,1.10751261,60749.0,60748.0,0.11307364]
[1724940410676,1.10751261,60749.0,60748.0,1.28919964]
[1724940411068,1.10751261,60749.0,60748.0,1.20691364]
[1724940411474,1.10751261,60749.0,60748.0,0.60691364]
[1724940411675,1.10751261,60749.0,60748.0,0.11307364]
[1724940412180,1.10751261,60749.0,60748.0,0.60691364]
[1724940412376,1.10751261,60749.0,60748.0,0.11307364]
[1724940413585,1.10316905,60749.0,60748.0,0.11307364]
[1724940413784,1.08018652,60749.0,60748.0,1.20691364]
[1724940413971,1.08018652,60749.0,60748.0,1.28919964]
[1724940413972,0.81469111,60749.0,60748.0,1.28919964]
[1724940414669,0.81469111,60749.0,60748.0,1.20691364]
[1724940415075,0.81469111,60749.0,60748.0,1.28919964]
[1724940415277,0.81469111,60749.0,60748.0,1.20691364]
[1724940415583,0.72495011,60749.0,60748.0,1.37148564]
[1724940415970,0.63466211,60749.0,60748.0,1.73148564]
[1724940416281,0.54791111,60749.0,60748.0,1.64919964]
[1724940416480,0.54791111,60749.0,60748.0,1.04919964]
[1724940416686,0.54791111,60749.0,60748.0,0.47307364]
[1724940417574,0.54791111,60749.0,60748.0,0.63983364]
[1724940419878,0.64557844,60749.0,60748.0,0.63983364]
[1724940420082,0.55220844,60749.0,60748.0,0.72211964]
[1724940420379,0.45454111,60749.0,60748.0,0.47307364]
[1724940420584,0.45454111,60749.0,60748.0,0.63983364]
[1724940421777,0.45454111,60749.0,60748.0,0.72211964]
[1724940422181,0.45454111,60749.0,60748.0,1.21595964]
[1724940422383,0.36173111,60749.0,60748.0,1.89824564]
[1724940422680,0.36173111,60749.0,60748.0,0.27983364]
[1724940422875,0.22498112,60749.0,60748.0,1.53824564]
[1724940423183,0.45644474,60767.0,60752.0,0.3608]
[1724940423184,0.04807626,60763.0,60752.0,0.3608]
[1724940423382,0.05545134,60771.0,60770.0,0.082256]
[1724940423688,0.14708783,60794.0,60770.0,0.082256]
[1724940423689,0.0038,60793.0,60770.0,1.48564678]
[1724940423914,0.13074474,60799.0,60770.0,1.48564678]
[1724940423915,0.0038,60805.0,60792.0,0.3608]
[1724940424079,0.3608,60804.0,60798.0,0.3608]
[1724940424678,0.3608,60799.0,60792.0,0.00024678]
[1724940425283,0.1651,60808.0,60793.0,0.36]
[1724940425483,0.3608,60804.0,60798.0,0.001]
[1724940425676,0.3608,60802.0,60798.0,0.002]
[1724940426081,0.49344,60801.0,60792.0,0.00024678]
[1724940426291,0.3608,60795.0,60782.0,0.3608]
[1724940426484,0.3608,60794.0,60776.0,0.3608]
[1724940426787,0.3608,60787.0,60777.0,0.7208]
[1724940427094,0.3608,60787.0,60778.0,0.36]
[1724940427292,0.082238,60784.0,60777.0,0.3608]
[1724940427497,0.249416,60800.0,60776.0,0.00024678]
[1724940427498,0.3598,60778.0,60776.0,0.00024678]
[1724940427782,0.3598,60778.0,60756.0,0.36]
[1724940427783,1.9806,60777.0,60756.0,0.0038]
[1724940427986,1.9806,60777.0,60749.0,0.36]
[1724940427987,0.3608,60759.0,60749.0,0.36]
[1724940428293,0.3608,60770.0,60758.0,0.3608]
[1724940428482,0.3608,60770.0,60762.0,0.36]
[1724940428682,0.00024678,60772.0,60765.0,0.082263]
[1724940428885,0.15444678,60776.0,60764.0,0.3608]
[1724940429186,0.3608,60779.0,60769.0,0.36]
[1724940429488,0.3608,60779.0,60764.0,0.3608]
[1724940429795,0.1502821,60794.0,60778.0,0.3608]
[1724940430091,0.52508254,60798.0,60777.0,0.36]
[1724940430092,0.00024599,60792.0,60784.0,0.3608]
[1724940430294,0.00024599,60792.0,60791.0,0.36]
[1724940430588,0.00024599,60792.0,60785.0,0.36]
[1724940430781,0.00024599,60792.0,60786.0,0.16892]
[1724940431483,0.01424599,60792.0,60791.0,0.001]
[1724940431878,0.01424599,60792.0,60780.0,0.00024678]
[1724940431879,1.10772599,60792.0,60780.0,0.16916678]
[1724940432184,0.3608,60787.0,60786.0,0.001]
[1724940432583,1.45432,60787.0,60780.0,0.02914522]
[1724940432789,0.18264599,60792.0,60781.0,0.3608]
[1724940432790,0.082231,60789.0,60781.0,0.3608]
[1724940432988,0.54344599,60792.0,60781.0,0.3608]
[1724940432989,0.082239,60783.0,60781.0,0.3608]
[1724940433288,0.49352,60791.0,60780.0,0.00024678]
[1724940433289,0.082241,60781.0,60780.0,0.00024678]
[1724940433686,0.575801,60781.0,60780.0,0.00024678]
[1724940433888,0.082229,60791.0,60780.0,0.44248978]
[1724940434091,0.04026452,60790.0,60782.0,0.3608]
[1724940434290,0.37704599,60792.0,60782.0,0.3608]
[1724940434484,0.04026466,60791.0,60782.0,0.3608]
[1724940434684,0.36304599,60792.0,60782.0,0.44304]
[1724940434883,0.36104599,60792.0,60787.0,0.36]
[1724940435091,0.04026209,60791.0,60787.0,0.36]
[1724940435299,0.05426201,60790.0,60787.0,0.36]
[1724940435589,0.014,60790.0,60789.0,0.3608]
[1724940435798,0.012,60790.0,60789.0,0.936551]
[1724940435984,0.01324599,60792.0,60791.0,0.082228]
[1724940436187,0.01324599,60792.0,60791.0,0.443028]
[1724940436484,0.01324599,60792.0,60791.0,0.936508]
[1724940436689,0.01324599,60792.0,60791.0,1.536508]
[1724940436886,0.85050995,60818.0,60809.0,0.082204]
[1724940437086,0.14686667,60823.0,60822.0,0.082186]
[1724940437282,0.3612,60829.0,60822.0,0.082186]
[1724940437283,0.16344254,60824.0,60822.0,0.442986]
[1724940437492,0.13052299,60835.0,60824.0,0.36]
[1724940437694,0.14685816,60839.0,60834.0,0.36]
[1724940437995,0.3608,60846.0,60834.0,0.36]
[1724940437996,0.13052299,60838.0,60834.0,0.36]
[1724940438189,0.13052299,60845.0,60837.0,0.3608]
[1724940438389,0.327207,60858.0,60844.0,0.3608]
[1724940438589,0.54114884,60858.0,60844.0,0.3608]
[1724940438893,0.4108,60858.0,60838.0,0.17312]
[1724940439093,0.007,60839.0,60838.0,0.17312]
[1724940439396,0.007,60839.0,60835.0,0.00024658]
[1724940439697,0.007,60839.0,60838.0,0.3608]
[1724940439881,0.007,60839.0,60835.0,0.00024658]
[1724940440692,0.3608,60844.0,60835.0,0.00024658]
[1724940440885,0.3598,60844.0,60837.0,0.3608]
[1724940441094,0.13034884,60849.0,60835.0,0.00024658]
[1724940441300,0.04022691,60848.0,60835.0,0.00024658]
[1724940441591,0.004,60839.0,60838.0,0.001]
[1724940442101,0.004,60844.0,60838.0,0.001]
[1724940442393,0.004,60844.0,60843.0,0.3608]
[1724940443190,0.3648,60844.0,60837.0,0.39200236]
[1724940443699,0.082162,60840.0,60837.0,0.3618]
[1724940443894,0.005,60839.0,60838.0,0.001]
[1724940444594,0.447956,60844.0,60837.0,0.001]
[1724940444793,0.3608,60838.0,60837.0,0.001]
[1724940445002,0.3608,60838.0,60835.0,0.00124658]
[1724940445304,0.3588,60838.0,60835.0,0.00024658]
[1724940445601,0.005,60839.0,60837.0,0.3608]
[1724940445800,0.082164,60838.0,60837.0,0.3608]
[1724940445989,0.442964,60838.0,60837.0,0.001]
[1724940446194,0.936084,60838.0,60837.0,0.001]
[1724940447394,0.442964,60838.0,60837.0,0.001]
[1724940447598,0.943084,60838.0,60837.0,0.001]
[1724940447796,0.449964,60838.0,60837.0,0.001]
[1724940448302,0.449964,60838.0,60837.0,0.002]
[1724940448795,0.082159,60842.0,60837.0,0.001]
[1724940448995,0.007,60838.0,60837.0,0.002]
[1724940449198,0.007,60838.0,60837.0,0.084166]
[1724940449590,0.007,60838.0,60837.0,0.002]
[1724940450193,0.007,60838.0,60837.0,0.001]
[1724940450392,0.089164,60838.0,60837.0,0.002]
[1724940451103,0.582284,60838.0,60837.0,0.002]
[1724940451300,0.086164,60838.0,60837.0,0.002]
[1724940451697,0.579284,60838.0,60837.0,0.002]
[1724940451896,0.086164,60838.0,60837.0,0.002]
[1724940452293,0.004,60838.0,60837.0,0.002]
[1724940453004,0.011,60838.0,60837.0,0.002]
[1724940453202,0.093164,60838.0,60837.0,0.002]
[1724940453396,0.011,60838.0,60837.0,0.002]
[1724940453600,1.186284,60838.0,60837.0,0.002]
[1724940453809,0.49312,60837.0,60822.0,0.173]
[1724940454102,0.9718,60838.0,60825.0,0.082182]
[1724940454103,0.081178,60828.0,60825.0,0.082182]
[1724940454303,0.082173,60832.0,60823.0,0.39064961]
[1724940454505,0.3718,60838.0,60823.0,0.39064961]
[1724940454708,0.00024588,60837.0,60826.0,0.082181]
[1724940454896,0.082182,60825.0,60824.0,0.00024658]
[1724940455094,0.082183,60824.0,60810.0,0.3608]
[1724940455297,0.3608,60827.0,60815.0,0.3608]
[1724940455496,0.3608,60833.0,60826.0,0.3608]
[1724940455699,0.32654,60836.0,60834.0,0.082169]
[1724940455700,0.00084,60836.0,60834.0,0.082169]
[1724940455899,0.5,60852.0,60832.0,0.3608]
[1724940456100,0.082142,60855.0,60839.0,0.3608]
[1724940456304,0.00024658,60849.0,60839.0,0.3608]
[1724940456500,0.00024658,60849.0,60844.0,0.3608]
[1724940456704,0.00024658,60849.0,60848.0,0.082151]
[1724940457208,0.00024658,60849.0,60846.0,0.3608]
[1724940457700,0.00024658,60849.0,60847.0,0.3608]
[1724940457901,0.00024658,60849.0,60848.0,0.082151]
[1724940458497,0.00624658,60849.0,60848.0,0.082151]
[1724940458697,0.00443342,60849.0,60848.0,1.175191]
[1724940459097,0.05,60858.0,60857.0,0.082139]
[1724940459305,0.3608,60878.0,60857.0,0.7216]
[1724940459499,0.3608,60872.0,60857.0,0.3608]
[1724940459707,0.3608,60867.0,60858.0,0.00024658]
[1724940459910,0.3608,60862.0,60858.0,0.00024658]
[1724940460112,0.3608,60862.0,60851.0,0.3608]
[1724940460309,0.082141,60855.0,60851.0,0.3608]
[1724940460613,0.082141,60855.0,60848.0,0.002]
[1724940460614,0.6,60855.0,60848.0,0.001]
[1724940460802,0.3608,60849.0,60848.0,0.001]
[1724940461209,1.45384,60849.0,60842.0,0.00024658]
[1724940461409,0.85288,60843.0,60842.0,0.00024658]
[1724940461604,0.85288,60843.0,60842.0,0.00124658]
[1724940461605,0.3608,60843.0,60842.0,0.00124658]
[1724940461804,0.3608,60843.0,60842.0,0.00024658]
[1724940462007,0.3598,60843.0,60842.0,0.00024658]
[1724940462510,0.3588,60843.0,60842.0,0.00024658]
[1724940462807,1.45188,60843.0,60824.0,0.3608]
[1724940463012,0.3608,60828.0,60820.0,0.3608]
[1724940463217,0.442979,60828.0,60820.0,0.3618]
[1724940463405,0.441979,60828.0,60820.0,0.3618]
[1724940463603,0.441979,60828.0,60820.0,0.3608]
[1724940463604,0.3598,60828.0,60820.0,0.3608]
[1724940463999,0.00024658,60830.0,60822.0,0.082185]
[1724940464205,0.00024658,60830.0,60825.0,0.3608]
[1724940464399,0.04023539,60829.0,60825.0,0.3608]
[1724940464604,0.00024658,60830.0,60825.0,0.3618]
[1724940465107,0.12970908,60834.0,60825.0,0.3618]
[1724940465511,0.14685816,60837.0,60825.0,0.3618]
[1724940465714,0.3608,60834.0,60825.0,0.3618]
[1724940465910,0.3608,60834.0,60825.0,0.001]
[1724940465911,0.3608,60828.0,60825.0,0.001]
[1724940466211,0.3608,60826.0,60825.0,0.002]
[1724940466412,0.08219,60819.0,60818.0,0.00024658]
[1724940466614,0.08219,60819.0,60806.0,0.3608]
[1724940466615,0.082201,60811.0,60806.0,0.3608]
[1724940466810,0.082205,60808.0,60795.0,0.02976025]
[1724940467010,0.18753561,60807.0,60796.0,0.001]
[1724940467215,0.3608,60803.0,60796.0,0.001]
[1724940467409,0.03923422,60802.0,60796.0,0.001]
[1724940467811,0.03923422,60802.0,60793.0,0.36104658]
[1724940468114,0.03923422,60802.0,60793.0,0.00024658]
[1724940468320,0.03923422,60802.0,60778.0,0.3608]
[1724940468321,0.3608,60796.0,60778.0,0.3608]
[1724940468524,0.55847845,60796.0,60782.0,0.08224]
[1724940468711,0.082219,60798.0,60795.0,0.3608]
[1724940468712,0.02885948,60798.0,60795.0,0.3608]
[1724940469017,0.0038,60818.0,60797.0,0.41]
[1724940469219,0.1855,60828.0,60813.0,0.3608]
[1724940469524,0.1817,60828.0,60813.0,0.3608]
[1724940469819,0.1817,60828.0,60800.0,0.0038]
[1724940469820,0.082202,60811.0,60800.0,0.0038]
[1724940470024,0.3608,60807.0,60799.0,0.17516658]
[1724940470213,0.00024658,60812.0,60806.0,0.7216]
[1724940470415,0.00024658,60812.0,60811.0,0.3608]
[1724940471126,0.00024658,60812.0,60806.0,0.3608]
[1724940471817,0.00024658,60812.0,60799.0,0.17516658]
[1724940471818,0.3608,60807.0,60799.0,0.17516658]
[1724940472129,0.3588,60807.0,60799.0,0.00024658]
[1724940472317,0.01424658,60812.0,60804.0,0.3608]
[1724940472711,0.01424658,60812.0,60806.0,0.083207]
[1724940472712,0.01024658,60812.0,60806.0,0.083207]
[1724940472919,0.01924658,60812.0,60806.0,0.002]
[1724940473220,0.002,60807.0,60806.0,0.001]
[1724940473422,0.002,60807.0,60799.0,0.00024658]
[1724940473423,0.3628,60807.0,60799.0,0.00024658]
[1724940473616,0.3689,60806.0,60799.0,0.00024658]
[1724940473810,0.8689,60806.0,60799.0,0.00024658]
[1724940474012,0.082215,60801.0,60799.0,0.00024658]
[1724940474418,1.175655,60801.0,60799.0,0.00024658]
[1724940474911,0.575656,60800.0,60799.0,0.00024658]
[1724940475425,1.175656,60800.0,60799.0,0.00124658]
[1724940475613,0.082216,60800.0,60799.0,0.00224658]
[1724940475923,1.175656,60800.0,60799.0,0.00224658]
[1724940476115,0.082225,60794.0,60779.0,0.3608]
[1724940476316,0.3608,60789.0,60779.0,0.3608]
[1724940476514,0.082243,60780.0,60779.0,0.3608]
[1724940476921,0.082244,60779.0,60769.0,0.02943515]
[1724940477114,0.082248,60776.0,60768.0,0.00024678]
[1724940477318,0.00024678,60780.0,60775.0,0.443049]
[1724940477520,0.00024678,60780.0,60779.0,0.082244]
[1724940477721,0.00024678,60780.0,60778.0,0.3608]
[1724940477917,0.5,60795.0,60778.0,0.3608]
[1724940478117,0.08223,60790.0,60778.0,0.3608]
[1724940478321,0.082235,60786.0,60778.0,0.3608]
[1724940478521,0.3608,60791.0,60778.0,0.3608]
[1724940478723,0.3608,60785.0,60778.0,0.3608]
[1724940478927,0.3608,60785.0,60778.0,0.36104678]
[1724940479117,0.443044,60779.0,60778.0,0.00024678]
[1724940479430,0.936644,60779.0,60778.0,0.00024678]
[1724940479627,0.5,60783.0,60778.0,0.00024678]
[1724940479825,0.3257,60790.0,60780.0,0.443043]
[1724940480020,0.3257,60790.0,60780.0,0.3608]
[1724940480214,0.3257,60790.0,60778.0,0.00024678]
[1724940480614,0.08224,60782.0,60778.0,0.00024678]
[1724940480819,0.082244,60779.0,60778.0,0.00024678]
[1724940481330,1.536644,60779.0,60778.0,0.00024678]
[1724940481834,0.3608,60779.0,60778.0,0.00024678]
[1724940482021,0.001,60783.0,60778.0,0.36104678]
[1724940482222,0.082244,60779.0,60778.0,0.36104678]
[1724940482526,0.083244,60779.0,60778.0,0.36104678]
[1724940482730,1.176844,60779.0,60778.0,0.36104678]
[1724940482930,1.177844,60779.0,60778.0,0.36104678]
[1724940483726,1.538644,60779.0,60778.0,0.00024678]
[1724940484123,2.405744,60779.0,60778.0,0.00024678]
[1724940484323,0.082252,60774.0,60770.0,0.082256]
[1724940484524,0.5441,60779.0,60777.0,0.082247]
[1724940484832,0.3628,60779.0,60772.0,0.082253]
[1724940485020,0.3618,60779.0,60767.0,0.082259]
[1724940485329,0.45129078,60779.0,60778.0,0.001]
[1724940485522,0.87304678,60779.0,60778.0,0.001]
[1724940485825,0.37304678,60779.0,60778.0,0.083246]
[1724940486034,0.38004678,60779.0,60778.0,0.082246]
[1724940486429,0.082246,60778.0,60777.0,0.001]
[1724940486629,0.658092,60778.0,60777.0,0.001]
[1724940486827,1.258092,60778.0,60777.0,0.001]
[1724940487129,0.081255,60771.0,60767.0,0.08250678]
[1724940487333,0.5,60777.0,60768.0,0.082259]
[1724940487334,0.6815,60777.0,60768.0,0.082259]
[1724940487532,0.082255,60771.0,60768.0,0.082259]
[1724940487922,0.082259,60768.0,60767.0,0.00024678]
[1724940488124,0.164518,60768.0,60767.0,0.00024678]
[1724940488425,1.174939,60768.0,60767.0,0.00024678]
[1724940488732,1.617998,60768.0,60767.0,0.00024678]
[1724940488923,1.535739,60768.0,60767.0,0.00024678]
[1724940489325,1.174939,60768.0,60767.0,0.00024678]
[1724940489525,1.186939,60768.0,60767.0,0.00124678]
[1724940489926,1.199939,60768.0,60767.0,0.00124678]
[1724940490230,1.270198,60768.0,60767.0,0.00124678]
[1724940490420,1.644998,60768.0,60767.0,0.00124678]
[1724940490831,1.644998,60768.0,60756.0,0.082275]
[1724940490832,0.082274,60757.0,60756.0,0.082275]
[1724940491031,0.082274,60757.0,60730.0,0.082311]
[1724940491032,0.082281,60753.0,60749.0,0.257324]
[1724940491231,0.3608,60757.0,60749.0,0.17504]
[1724940491450,0.3608,60757.0,60752.0,0.082281]
[1724940491647,0.082279,60754.0,60745.0,0.3608]
[1724940491831,0.082279,60754.0,60752.0,0.08228]
[1724940492025,0.00024678,60756.0,60745.0,0.39049996]
[1724940492226,0.3608,60757.0,60745.0,0.39049996]
[1724940492227,0.36004678,60757.0,60745.0,0.39049996]
[1724940492730,0.36004678,60757.0,60745.0,0.3608]
[1724940492731,0.082289,60746.0,60745.0,0.3608]
[1724940492935,0.3608,60752.0,60745.0,0.44309]
[1724940492936,0.443081,60752.0,60745.0,0.44309]
[1724940493136,0.443081,60752.0,60745.0,0.3608]
[1724940493137,0.5,60751.0,60745.0,0.3608]
[1724940493331,0.082289,60746.0,60745.0,0.3608]
[1724940493730,1.536969,60746.0,60743.0,0.00024678]
[1724940494039,0.681292,60744.0,60732.0,0.3608]
[1724940494227,0.3608,60740.0,60732.0,0.443107]
[1724940494430,0.082298,60739.0,60732.0,0.3608]
[1724940494838,0.3608,60740.0,60736.0,0.082301]
[1724940495135,0.3598,60740.0,60732.0,0.36104678]
[1724940495339,0.5,60742.0,60741.0,0.082296]
[1724940495636,0.00024678,60744.0,60737.0,0.3608]
[1724940495827,0.00024678,60744.0,60738.0,0.0823]
[1724940496029,0.004,60740.0,60737.0,0.3608]
[1724940496335,0.004,60740.0,60739.0,0.082298]
[1724940497037,0.00024678,60744.0,60737.0,0.4431]
[1724940497038,0.00024678,60744.0,60743.0,0.082293]
[1724940497232,0.00024678,60744.0,60743.0,0.443093]
[1724940497736,0.00024678,60744.0,60743.0,0.3608]
[1724940497927,0.08253878,60744.0,60743.0,0.3608]
[1724940498635,0.00024678,60744.0,60737.0,0.3628]
[1724940498948,0.003,60740.0,60737.0,0.3618]
[1724940499146,0.003,60740.0,60737.0,0.444101]
[1724940499336,0.005,60740.0,60738.0,0.0823]
[1724940499640,0.001,60740.0,60737.0,0.38990619]
[1724940499833,0.001,60740.0,60728.0,0.17376]
[1724940499834,0.0823,60738.0,60728.0,0.17376]
[1724940500037,0.49392,60739.0,60727.0,0.3608]
[1724940500038,0.082306,60733.0,60727.0,0.3608]
[1724940500230,0.3608,60734.0,60711.0,0.0038]
[1724940500433,0.9608,60739.0,60707.0,0.3608]
[1724940500434,0.3608,60714.0,60707.0,0.3608]
[1724940500637,0.3598,60714.0,60707.0,0.3608]
[1724940500834,0.5,60713.0,60707.0,0.3608]
[1724940501033,0.5,60713.0,60708.0,0.08234]
[1724940501234,0.5,60713.0,60712.0,0.443135]
[1724940501431,0.00024699,60717.0,60712.0,0.443135]
[1724940501432,0.00024699,60717.0,60712.0,0.3608]
[1724940501636,0.5,60731.0,60724.0,0.082318]
[1724940501843,0.8608,60732.0,60726.0,0.3608]
[1724940502140,0.3608,60732.0,60726.0,0.3608]
[1724940502341,0.3608,60732.0,60721.0,0.3608]
[1724940502647,0.082313,60728.0,60721.0,0.3448]
[1724940502835,0.3608,60732.0,60721.0,0.3448]
[1724940503037,0.5,60727.0,60721.0,0.3448]
[1724940503245,0.6659,60731.0,60722.0,0.082321]
[1724940503638,0.6659,60731.0,60730.0,0.082311]
[1724940503639,0.5,60731.0,60730.0,0.082311]
[1724940503946,0.3608,60732.0,60726.0,0.3608]
[1724940504142,0.3708,60732.0,60726.0,0.3608]
[1724940504353,0.01,60732.0,60731.0,0.443109]
[1724940504647,0.00024699,60733.0,60732.0,0.082308]
[1724940505038,0.5,60750.0,60741.0,0.082295]
[1724940505243,0.6711,60752.0,60743.0,0.3608]
[1724940505440,0.3608,60744.0,60731.0,0.39062756]
[1724940505845,0.3608,60744.0,60738.0,0.0823]
[1724940506240,0.00024699,60747.0,60737.0,0.3608]
[1724940506743,0.00024699,60747.0,60743.0,0.082292]
[1724940506944,0.00024699,60747.0,60738.0,0.082299]
[1724940507146,0.006,60744.0,60738.0,0.3618]
[1724940507642,0.00024699,60747.0,60744.0,0.082291]
[1724940507643,0.00324699,60747.0,60744.0,0.082291]
[1724940507842,0.00324699,60747.0,60743.0,0.3608]
[1724940508142,0.00324699,60747.0,60740.0,0.082297]
[1724940508342,0.00324699,60747.0,60738.0,0.3608]
[1724940508343,0.006,60744.0,60741.0,0.082296]
[1724940509248,0.006,60744.0,60738.0,0.3618]
[1724940509448,0.006,60744.0,60743.0,0.3608]
[1724940509746,0.006,60744.0,60739.0,0.082297]
[1724940509944,0.006,60744.0,60738.0,0.39192954]
[1724940510149,1.09392,60739.0,60735.0,0.00024699]
[1724940510343,0.37204699,60747.0,60735.0,0.00024699]
[1724940510344,0.443102,60736.0,60735.0,0.00024699]
[1724940510740,0.443102,60736.0,60726.0,0.3608]
[1724940510741,0.082315,60727.0,60726.0,0.3608]
[1724940510943,0.576315,60727.0,60726.0,0.3608]
[1724940511138,1.094,60727.0,60719.0,0.3608]
[1724940511343,0.082323,60722.0,60719.0,0.3608]
[1724940511639,0.5,60728.0,60722.0,0.08232]
[1724940511840,0.5,60728.0,60719.0,0.3608]
[1724940511841,0.082313,60728.0,60723.0,0.08232]
[1724940512151,0.3608,60729.0,60719.0,0.36104699]
[1724940513039,0.00024699,60731.0,60726.0,0.3608]
[1724940513241,0.00024699,60731.0,60730.0,0.082311]
[1724940514248,0.00024699,60731.0,60730.0,1.258622]
[1724940514453,0.3295,60751.0,60731.0,0.082308]
[1724940514637,0.3257,60751.0,60745.0,0.082289]
[1724940514845,0.5,60753.0,60743.0,0.3608]
[1724940515242,0.5,60753.0,60745.0,0.082289]
[1724940515748,0.36104699,60755.0,60745.0,0.082289]
[1724940515749,0.5,60754.0,60745.0,0.082289]
[1724940516048,0.5,60754.0,60743.0,0.36104699]
[1724940516049,0.08228,60753.0,60746.0,0.082289]
[1724940516850,0.3608,60750.0,60746.0,0.082289]
[1724940517646,0.3608,60750.0,60746.0,0.083289]
[1724940518042,0.3608,60750.0,60746.0,0.001]
[1724940518238,0.3728,60750.0,60746.0,0.001]
[1724940518445,0.082289,60747.0,60746.0,0.001]
[1724940518840,0.49388,60746.0,60724.0,0.447618]
[1724940519041,0.3608,60742.0,60727.0,0.02948351]
[1724940519247,0.3608,60734.0,60724.0,0.3608]
[1724940519643,0.082299,60739.0,60732.0,0.082308]
[1724940519839,0.5,60741.0,60735.0,0.082303]
[1724940520048,0.582296,60741.0,60735.0,0.082303]
[1724940520244,0.5,60741.0,60740.0,0.082297]
[1724940520554,0.1666,60746.0,60740.0,0.082297]
[1724940520555,0.011,60750.0,60746.0,0.00075301]
[1724940520850,0.011,60750.0,60748.0,0.3608]
[1724940521463,0.082281,60752.0,60748.0,0.3598]
[1724940521650,0.08252199,60756.0,60748.0,0.442086]
[1724940521839,0.082277,60755.0,60748.0,0.442086]
[1724940522044,0.014,60750.0,60748.0,0.443086]
[1724940522247,0.082285,60749.0,60748.0,0.3608]
[1724940522554,0.082285,60749.0,60748.0,0.001]
[1724940522746,1.176125,60749.0,60748.0,0.001]
[1724940523349,1.28564029,60749.0,60748.0,0.001]
[1724940523950,0.68564029,60749.0,60748.0,0.001]
[1724940524142,0.08229,60745.0,60731.0,0.082308]
[1724940524342,0.08229,60745.0,60724.0,0.3608]
[1724940524343,0.082317,60726.0,60724.0,0.3608]
[1724940524545,0.16389859,60733.0,60724.0,0.3608]
[1724940524742,0.05050297,60734.0,60724.0,0.3608]
[1724940524743,0.082317,60725.0,60724.0,0.3608]
[1724940524948,0.082312,60729.0,60724.0,0.3608]
[1724940525151,0.16389859,60731.0,60728.0,0.3608]
[1724940525345,0.05050297,60734.0,60728.0,0.3608]
[1724940525545,0.00024699,60736.0,60733.0,0.3608]
[1724940525546,0.08255099,60736.0,60733.0,0.3608]
[1724940525747,0.082304,60735.0,60733.0,0.3608]
[1724940526152,0.00024699,60736.0,60733.0,0.3608]
[1724940526356,0.00024699,60736.0,60735.0,0.082304]
[1724940526547,0.16414542,60736.0,60735.0,0.082304]
[1724940526748,0.16414542,60736.0,60735.0,1.176264]
[1724940526948,0.00024699,60736.0,60735.0,1.176264]
[1724940527159,0.15891172,60740.0,60739.0,0.082298]
[1724940527348,0.15891172,60744.0,60743.0,0.082293]
[1724940527546,0.18028845,60747.0,60746.0,0.082289]
[1724940527756,0.18028845,60747.0,60746.0,0.443089]
[1724940527943,0.18028845,60748.0,60747.0,0.082288]
[1724940528149,0.3608,60759.0,60746.0,0.3608]
[1724940528150,0.00024699,60754.0,60746.0,0.3608]
[1724940528348,0.00024699,60754.0,60753.0,0.443079]
[1724940528553,0.05074143,60754.0,60753.0,0.443079]
[1724940528759,0.18045318,60754.0,60753.0,0.443079]
[1724940528964,0.00024699,60754.0,60753.0,0.443079]
[1724940529460,0.23094762,60754.0,60753.0,0.443079]
[1724940529655,0.18045318,60754.0,60753.0,0.443079]
[1724940530160,0.18045318,60754.0,60753.0,0.38982338]
[1724940530354,0.00024699,60754.0,60753.0,0.47210238]
[1724940530554,0.01424699,60754.0,60753.0,0.47210238]
[1724940530758,0.01424699,60754.0,60753.0,1.56590238]
[1724940531058,0.01424699,60754.0,60753.0,1.64818138]
[1724940531256,0.05452115,60754.0,60753.0,1.56590238]